Cogmind - Beta 12 @@@ ROGUE MODE // 2023.06.27 @ 18:14:23 Player: ZOT Result: Destroyed by G-47 Trooper with Particle Gun Performance ------------- Evolutions (3) 1500 Regions Visited (6) 1200 Robots Destroyed (16) 80 Value Destroyed (167) 167 Prototype IDs (6) 120 Alien Tech Used (0) 0 Bonus (0) 0 TOTAL SCORE: 3067 Bonus ------- None Cogmind --------- Core Integrity 0/700 Matter 300/300 Energy 100/100 System Corruption 1% Temperature Cool (9) Movement Core (50) Location -7/Storage Parts ------- > --- POWER (1) -------- (None) > --- PROPULSION (4) --- (None) > --- UTILITY (6) ------ (None) > --- WEAPON (2) ------- (None) > --- INVENTORY (5) ---- Micro Nuclear Core VTOL Module Sensor Array Core Shielding Remote Datajack Peak State ------------ > --- POWER ------------ Improved Ion Engine > --- PROPULSION ------- Gravmag System VTOL Module VTOL Module VTOL Module > --- UTILITY ---------- Advanced Visual Processing Unit Sensor Array Terrain Scanner Terrain Scan Processor Targeting Computer Reaction Control System > --- WEAPON ----------- EM Pulse Gun Arc Projector > --- INVENTORY -------- Wheel Wheel VTOL Module Core Shielding [Rating: 28] Favorites ----------- Power Ion Engine Engine Ion Engine Power Core Micro Nuclear Core Propulsion VTOL Module Leg Aluminum Leg Wheel Wheel Hover Unit Gravmag System Flight Unit VTOL Module Utility Sensor Array Device Sensor Array Storage Large Storage Unit Processor Terrain Scan Processor Protection Core Shielding Weapon EM Pulse Gun Energy Gun EM Pulse Gun Energy Cannon Plasma Cannon Build | -11 -10 -9 -9 -8 -7 -7 ------- Run | Jun Mat Mat Min Mat Fac Sto Slots Evolved 6 | . . 2 . 2 2 . Power . | . . . . . . . Propulsion 2 | . . 2 . . . . Utility 4 | . . . . 2 2 . Weapon . | . . . . . . . Parts Attached 25 | 5 2 5 1 4 5 3 Power 3 | 1 . . 1 . . 1 Engine 2 | 1 . . 1 . . . Core 1 | . . . . . . 1 Reactor . | . . . . . . . Propulsion 10 | 2 . 4 . . 2 2 Treads . | . . . . . . . Leg 2 | 2 . . . . . . Wheel 2 | . . . . . . 2 Hover 1 | . . . . . 1 . Flight 5 | . . 4 . . 1 . Utility 8 | . 2 1 . 3 2 . Device 3 | . 1 1 . . 1 . Storage 1 | . 1 . . . . . Processor 3 | . . . . 2 1 . Hackware . | . . . . . . . Protection 1 | . . . . 1 . . Artifact . | . . . . . . . Weapon 4 | 2 . . . 1 1 . Energy Gun 3 | 2 . . . . 1 . Energy Cannon 1 | . . . . 1 . . Ballistic Gun . | . . . . . . . Ballistic Cannon . | . . . . . . . Launcher . | . . . . . . . Special Weapon . | . . . . . . . Impact Weapon . | . . . . . . . Slashing Weapon . | . . . . . . . Piercing Weapon . | . . . . . . . Special Melee Weapon . | . . . . . . . Unidentified Prototypes . | . . . . . . . Parts Lost 12 | . . . . 1 3 8 Power 1 | . . . . . 1 . Propulsion 5 | . . . . . 1 4 Utility 3 | . . . . . . 3 Weapon 3 | . . . . 1 1 1 Highest Loss Streak 5 | . . . . 1 3 5 To Critical Strikes . | . . . . . . . Average Slot Usage (%) 82 | . 91 100 100 97 85 41 Engine 8 | . 14 11 11 9 3 . Leg 8 | . 28 . . . . . Wheel 1 | . . . . . . 5 Flight 19 | . . 44 44 36 26 5 Device 13 | . 6 20 22 18 23 8 Storage 4 | . 13 1 . . . . Processor 6 | . . . . 16 23 13 Energy Gun 18 | . 28 22 22 16 8 4 Naked Turns 80 | . . . . . . 80 Heaviest Build 30 | 9 30 11 13 14 16 13 Greatest Support 20 | 20 20 16 16 16 16 20 Greatest Overweight (x) 2 | . 1 . . . 1 2 Average Overweight (x) . | . . . . . . . Largest Inventory Capacity 15 | 5 15 15 5 5 5 5 Average Capacity 7 | 5 14 5 5 5 5 5 Most Carried 15 | 4 15 14 5 5 4 5 Average Carried 5 | 2 10 5 4 4 3 3 Final Capacity 15 | 5 15 5 5 5 5 5 Final Carried 15 | 4 15 5 5 5 4 5 Class Distribution -------------------- 52% | Mutant 27% | Sprinter 16% | Scout 3% | Scavenger-Mutant Dominant Class ---------------- Mutant | -10/Materials Sprinter | -9/Materials Sprinter | -9/Mines Scout | -8/Materials Scout | -7/Factory Mutant | -7/Storage Resources | -11 -10 -9 -9 -8 -7 -7 ----------- Run | Jun Mat Mat Min Mat Fac Sto Matter Collected 390 | 250 20 16 34 30 . 40 Remotely . | . . . . . . . Salvage Created 413 | 90 62 16 126 119 . . Parts 40 | 8 11 2 14 5 . . Haulers Intercepted 1 | . . . . 1 . . Recyclers Shooed 1 | 1 . . . . . . Parts Field Recycled . | . . . . . . . Retrieved Matter . | . . . . . . . Parts Self-Destructed . | . . . . . . . Prevented . | . . . . . . . Kills | -11 -10 -9 -9 -8 -7 -7 ------- Run | Jun Mat Mat Min Mat Fac Sto Combat Hostiles Destroyed 4 | . . . 4 . . . Guns 4 | . . . 4 . . . Classes Destroyed 7 | 1 3 . 2 1 . . Builder 2 | . 1 . 1 . . . Tunneler 6 | 4 . . 1 1 . . Hauler 1 | . . . . 1 . . Operator 2 | . 1 1 . . . . Watcher 2 | . 1 . . 1 . . Swarmer 3 | . . . 3 . . . Assembled 1 | . . . 1 . . . Best Kill Streak 3 | 3 1 1 3 2 . . Combat Bots Only 3 | . . . 3 . . . Max Kills in Single Turn 1 | 1 1 1 1 1 . . Gunslinging . | . . . . . . . Exploded . | . . . . . . . Melee . | . . . . . . . Uniques/NPCs Destroyed . | . . . . . . . Combat | -11 -10 -9 -9 -8 -7 -7 -------- Run | Jun Mat Mat Min Mat Fac Sto Damage Taken 1225 | . . 10 104 67 110 934 Core 765 | . . 10 37 8 10 700 Absorbed by Shields . | . . . . . . . Core Remaining (%) 96 | 100 100 . 88 98 . . Volleys Fired 50 | 9 4 1 13 7 2 14 Largest 2 | 2 2 2 2 2 1 1 Hottest 80 | 80 80 80 80 80 40 55 Shots Fired 84 | 18 8 2 26 14 2 14 Gun 84 | 18 8 2 26 14 2 14 Cannon . | . . . . . . . Launcher . | . . . . . . . Special . | . . . . . . . Kinetic . | . . . . . . . Thermal . | . . . . . . . Explosive . | . . . . . . . Electromagnetic 84 | 18 8 2 26 14 2 14 Robot Hit Streak 8 | 5 3 2 8 6 . 5 Robot Miss Streak 3 | 2 1 . 2 3 2 3 Penetration Max . | . . . . . . . Secondary Targets 1 | . . . 1 . . . Max Gunslinging Chain 1 | . . . 1 . . . Shots Hit Robots 52 | 10 4 1 18 8 . 11 Core Hits 24 | 4 3 1 7 5 . 4 Critical Kills . | . . . . . . . Critical Parts Destroyed . | . . . . . . . Critical Strikes . | . . . . . . . Melee Attacks . | . . . . . . . Impact . | . . . . . . . Slashing . | . . . . . . . Piercing . | . . . . . . . Sneak Attacks . | . . . . . . . Combat Hostiles . | . . . . . . . Follow-up Attacks . | . . . . . . . Damage Inflicted 802 | 180 63 18 227 144 . 170 Guns 743 | 156 63 18 227 144 . 135 Cannons . | . . . . . . . Explosions 24 | 24 . . . . . . Melee . | . . . . . . . Ramming 35 | . . . . . . 35 Kinetic . | . . . . . . . Thermal 24 | 24 . . . . . . Explosive . | . . . . . . . Electromagnetic 743 | 156 63 18 227 144 . 135 Impact . | . . . . . . . Slashing . | . . . . . . . Piercing . | . . . . . . . Highest Corruption 1 | . . . . . 1 1 Average Corruption 1 | . . . . . 1 1 Corruption Purged . | . . . . . . . Corruption Blocked . | . . . . . . . Overload Shots . | . . . . . . . Overflow Damage . | . . . . . . . Projectiles . | . . . . . . . Explosions . | . . . . . . . Melee . | . . . . . . . Knockbacks . | . . . . . . . Impact . | . . . . . . . Kinetic . | . . . . . . . Secondary . | . . . . . . . Self-Inflicted Damage 16 | . . . . . . 16 Shots . | . . . . . . . Rammed 10 | . . . . . . 10 Targets Rammed 10 | . . . . . . 10 Kicked . | . . . . . . . Crushed . | . . . . . . . Highest Temperature 105 | 72 36 25 105 78 5 36 Average Temperature 31 | 30 16 15 42 32 4 11 Received Heat Transfer 609 | . . 6 . 45 81 477 Siege Activations . | . . . . . . . Robots Corrupted . | . . . . . . . Combat Hostiles . | . . . . . . . Parts Fried 3 | . . . 1 2 . . Impact Corruptions . | . . . . . . . Robots Melted . | . . . . . . . Combat Hostiles . | . . . . . . . Parts Melted . | . . . . . . . Heat Transferred 50 | 50 . . . . . . Parts Sabotaged . | . . . . . . . Parts Stolen . | . . . . . . . Parts Stripped . | . . . . . . . Power Chain Reactions 1 | 1 . . . . . . Missiles Intercepted . | . . . . . . . Alert | -11 -10 -9 -9 -8 -7 -7 ------- Run | Jun Mat Mat Min Mat Fac Sto Peak Influence 286 | 20 30 63 119 175 189 286 Initial 85 | . 13 12 24 46 79 85 Average 64 | 9 20 25 107 106 114 106 Maximum Alert Level 1 | . . . . . . 1 Low Security (%) 98 | 100 100 100 100 100 100 90 Level 1 1 | . . . . . . 9 Level 2 . | . . . . . . . Level 3 . | . . . . . . . Level 4 . | . . . . . . . Level 5 . | . . . . . . . High Security . | . . . . . . . Max Security . | . . . . . . . Squads Dispatched 12 | . . 1 . 2 6 3 Investigation 8 | . . 1 . 1 5 1 Extermination . | . . . . . . . Reinforcement 3 | . . . . . 1 2 Assault . | . . . . . . . Garrison 1 | . . . . 1 . . Intercept . | . . . . . . . Searches Triggered . | . . . . . . . Construction Impeded . | . . . . . . . Haulers Reinforced 1 | . . . . . . 1 Active Scanning Responses . | . . . . . . . Cargo Convoy Interrupts . | . . . . . . . Stealth | -11 -10 -9 -9 -8 -7 -7 --------- Run | Jun Mat Mat Min Mat Fac Sto Distress Signals 6 | . . . . 2 . 4 Communications Jammed . | . . . . . . . Distress Signals . | . . . . . . . Times Spotted 63 | . 1 6 13 9 10 24 Peak Tracking Total 20 | . 1 8 20 8 6 13 Tactical Retreats 13 | . . . 2 2 2 7 Traps | -11 -10 -9 -9 -8 -7 -7 ------- Run | Jun Mat Mat Min Mat Fac Sto Traps Triggered . | . . . . . . . Indirectly . | . . . . . . . Trap Hack Attempts . | . . . . . . . Triggered . | . . . . . . . Disarmed 6 | . . . . . 6 . Reprogrammed 1 | . . . . . . 1 Reused . | . . . . . . . Traps Extracted . | . . . . . . . Installed . | . . . . . . . Triggered . | . . . . . . . Machines | -11 -10 -9 -9 -8 -7 -7 ---------- Run | Jun Mat Mat Min Mat Fac Sto Machines Disabled 1 | . . . 1 . . . Max in Single Turn 1 | . . . 1 . . . Machines Repaired . | . . . . . . . Machines Sabotaged . | . . . . . . . Overloaded Fab Kills . | . . . . . . . Hacking | -11 -10 -9 -9 -8 -7 -7 --------- Run | Jun Mat Mat Min Mat Fac Sto Machines Accessed 15 | . 1 4 . 3 5 2 Terminals 13 | . 1 4 . 2 4 2 Fabricators 1 | . . . . . 1 . Repair Stations . | . . . . . . . Recycling Units . | . . . . . . . Scanalyzers 1 | . . . . 1 . . Garrison Access . | . . . . . . . Total Hacks 53 | . 2 16 . 10 18 7 Successful 29 | . . 12 . 5 6 6 Failed 24 | . 2 4 . 5 12 1 Catastrophic 12 | . . 1 . 2 9 . Database Lockouts . | . . . . . . . Manual . | . . . . . . . Terminals 48 | . 2 16 . 7 16 7 Fabricators 2 | . . . . . 2 . Repair Stations . | . . . . . . . Recycling Units . | . . . . . . . Scanalyzers 3 | . . . . 3 . . Garrison Access . | . . . . . . . Terminal Hacks 27 | . . 12 . 3 6 6 Record 4 | . . 2 . 1 . 1 Prototype ID Bank 3 | . . 2 . . 1 . Emergency Access Points 3 | . . 2 . 1 . . Terminal Index 1 | . . . . . 1 . Alert Level 1 | . . 1 . . . . Locate Traps 2 | . . . . . 1 1 Disarm Traps 1 | . . . . . 1 . Reprogram Traps 2 | . . . . . . 2 Dispatch Records 1 | . . . . . . 1 Maintenance Status 1 | . . 1 . . . . Patrol Status 1 | . . 1 . . . . Assault Status 1 | . . 1 . . . . Hauler Manifests 1 | . . . . . 1 . Zone Layout 5 | . . 2 . 1 1 1 Fabricator Hacks . | . . . . . . . Repair Station Hacks . | . . . . . . . Recycling Unit Hacks . | . . . . . . . Scanalyzer 2 | . . . . 2 . . Insert Component 1 | . . . . 1 . . Analyze 1 | . . . . 1 . . Garrison Access Hacks . | . . . . . . . Unauthorized Hacks . | . . . . . . . Terminals . | . . . . . . . Fabricators . | . . . . . . . Repair Stations . | . . . . . . . Recycling Units . | . . . . . . . Scanalyzers . | . . . . . . . Garrison Access . | . . . . . . . Data Cores Recovered 2 | . 1 1 . . . . Used 1 | . . 1 . . . . Hacking Detections 13 | . 1 3 . 2 5 2 Full Trace Events 8 | . . 1 . 1 5 1 Feedback Events 1 | . . . . . 1 . Corruption 1 | . . . . . 1 . Feedback Blocked . | . . . . . . . Robot Schematics Acquired . | . . . . . . . Robots Built . | . . . . . . . Authchips . | . . . . . . . Time . | . . . . . . . Total Robot Build Rating . | . . . . . . . Part Schematics Acquired 1 | . . . . 1 . . Parts Built . | . . . . . . . Authchips . | . . . . . . . Time . | . . . . . . . Total Part Build Rating . | . . . . . . . Parts Repaired . | . . . . . . . Time . | . . . . . . . Parts Recycled . | . . . . . . . Recycled Matter . | . . . . . . . Retrieved Matter . | . . . . . . . Retrieved Components . | . . . . . . . Parts Scanalyzed 1 | . . . . 1 . . Part Schematics Acquired 1 | . . . . 1 . . Parts Damaged . | . . . . . . . Bothacking | -11 -10 -9 -9 -8 -7 -7 ------------ Run | Jun Mat Mat Min Mat Fac Sto Used RIF Installer . | . . . . . . . Robots Hacked . | . . . . . . . Non-combat . | . . . . . . . Combat . | . . . . . . . Robot Hacks Applied . | . . . . . . . Relay Couplers Released . | . . . . . . . Fabnet Peak Effective % . | . . . . . . . Robots Rewired . | . . . . . . . Allies Hacked . | . . . . . . . Hacks Repelled . | . . . . . . . Allies | -11 -10 -9 -9 -8 -7 -7 -------- Run | Jun Mat Mat Min Mat Fac Sto Total Allies . | . . . . . . . Largest Group . | . . . . . . . Highest-Rated Group . | . . . . . . . Highest-Rated Ally . | . . . . . . . Total Orders . | . . . . . . . Ally Attacks . | . . . . . . . Total Damage . | . . . . . . . Kills . | . . . . . . . Allies Corrupted . | . . . . . . . Allies Melted . | . . . . . . . Intel | -11 -10 -9 -9 -8 -7 -7 ------- Run | Jun Mat Mat Min Mat Fac Sto Robot Analysis Total . | . . . . . . . Derelict Logs Recovered . | . . . . . . . Drone Launches . | . . . . . . . Drone Recoveries . | . . . . . . . Exploration | -11 -10 -9 -9 -8 -7 -7 ------------- Run | Jun Mat Mat Min Mat Fac Sto Turns Passed 1075 | 127 293 107 162 94 85 207 Spaces Moved 1343 | 78 141 237 173 239 242 233 Core 146 | 10 . . . . . 136 Treads . | . . . . . . . Legs 209 | 68 141 . . . . . Wheels 97 | . . . . . . 97 Hover . | . . . . . . . Flight 891 | . . 237 173 239 242 . Fastest Speed 26 | 50 120 26 26 26 26 50 Average Speed 55 | 111 187 26 26 26 29 67 Slowest Speed 190 | 120 190 26 26 26 109 150 Overloaded Moves . | . . . . . . . Propulsion Burnouts . | . . . . . . . Robots Hopped 3 | . . . . 3 . . Cave-ins Triggered . | . . . . . . . Exploration Rate (%) 22 | 4 26 21 27 27 11 41 Regions Visited 6 Branch Regions 2 Pre-discovered Areas . | . . . . . . . Known Exits Taken . | . . . . . . . Unknown Exits Taken 6 | 1 1 1 1 1 1 . Scrap Searched . | . . . . . . . Spaces Dug . | . . . . . . . Terrain Destroyed 3 | 3 . . . . . . Melee . | . . . . . . . Projectile . | . . . . . . . AOE 3 | 3 . . . . . . Terrain Rammed . | . . . . . . . Walls Destroyed . | . . . . . . . Machines Disabled . | . . . . . . . Actions | -11 -10 -9 -9 -8 -7 -7 --------- Run | Jun Mat Mat Min Mat Fac Sto Total 1581 | 100 163 282 263 253 252 268 Wait 110 | . . 32 74 . . 4 Move 1331 | 77 140 236 172 232 241 233 Hop 3 | . . . . 3 . . Pick Up 36 | 9 15 1 1 4 3 3 Fast Attach 2 | . . . 1 1 . . Attach 18 | 5 2 3 . 2 3 3 Detach 1 | . . . . . . 1 Swap 5 | . . 2 . 1 2 . Drop 15 | . 2 7 2 3 1 . Fire 50 | 9 4 1 13 7 2 14 Melee . | . . . . . . . Ram 10 | . . . . . . 10 Kick . | . . . . . . . Crush . | . . . . . . . Escape Stasis . | . . . . . . . Rewire . | . . . . . . . Trap . | . . . . . . . Miscellaneous . | . . . . . . . Route ------- -11/Junkyard -10/Materials -9/Materials -9/Mines -8/Materials -7/Factory -7/Storage History --------- Turn | Location | Event 16 | -11/Junkyard | Discovered new exit (range 16) 128 | -11/Junkyard | Entered Materials 315 | -10/Materials | Build established: Mutant 387 | -10/Materials | Discovered new exit (range 5) 421 | -10/Materials | Entered another Materials area 421 | -9/Materials | Evolved 2 slots: Propulsion x2 526 | -9/Materials | Discovered new exit (range 9) 528 | -9/Materials | Entered Mines 545 | -9/Mines | Assembled infested the area 550 | -9/Mines | Assisted by a Guerilla fighting off Assembled 599 | -9/Mines | Met a Derelict bent on vengeance 645 | -9/Mines | Discovered new exit (range 16) 690 | -9/Mines | Entered Materials 690 | -8/Materials | Evolved 2 slots: Utility x2 692 | -8/Materials | Garrison activated, responded to threat 773 | -8/Materials | Discovered new exit (range 13) 784 | -8/Materials | Entered Factory 784 | -7/Factory | Evolved 2 slots: Utility x2 850 | -7/Factory | Discovered new exit (range 10) 860 | -7/Factory | Lost 3 parts (1p1n1w) 869 | -7/Factory | Entered Storage 968 | -7/Storage | Lost 5 parts (3n2u) 996 | -7/Storage | Released all parts (4) 1003 | -7/Storage | Core integrity fell below 50% 1022 | -7/Storage | Lost 3 parts (1n1u1w) 1048 | -7/Storage | Core integrity fell below 20% 1076 | -7/Storage | Destroyed by G-47 Trooper with Particle Gun Last Messages --------------- 01036_ A-02 Transporter sends out distress signal. 01036_ Slammed into A-02 Transporter. 01039_ W-25 Informer sends out distress signal. 01042_ Connecting with Terminal... >>Traps(Reprogram) Reprogrammed 1 Blade Trap. >>Traps(Reprogram) No applicable traps found in local area. >>Enumerate(Squads) Retrieving dispatch records... Found 24 active squads: 12x Security 2x Surveillance 2x Patrol 6x Transport 1x Investigation 1x Reinforcement 01056_ ALERT: Hostiles spotted, dispatching reinforcements to Terminal S005. 01075_ K-01 Serf collects debris. Map ----- +----------------------------------------------------+ | ???????????????????????????????????????# | | ???????????????????????????????????????# | | ???????????????????????????????????????# | | ???????????????????????????????????????# | | ???????????????????????????????????????# | | ???????????????????????????????????????# | | ???????????????????????????????????????# | | ???????????????????????????????????????# | | ???????????????????????????????????????? | | ???????????????????????????????????????? | | ????????????? ??????????????????????? | | ????????????# #?????????????????????? | | ????????????# #?????????????????????? | | ????????????# ##????????????????????? | | ???????????## ##???????????????????? | | ??????????? # ""???????????????????? | | ????????????+ ""#??????????????????? | | ????????????# T"#??????????????????? | | ????????????# g ""#??????????????????? | | ????????????# ""?????????????????### | | ????????????# #??????????????????#"" | | ??########+## k#??????????????????#"R | | ??# # #??????#############" | | ??# # u #??????# | | ??# # ######## | | ??# + @ | | ??# "T" ####+############ ########### | | ?# """ #?# #???????# #?????????? | | ?#########?# #???????# #?????????? | | ???????????# [#???????# #?????????? | | ???????????# #???????# #?????????? | | ???????????#! ! #???????# #?????????? | | ???????????# ! #???????# #?????????? | | ???????????#######???????# #?????????? | | ?????????????????????????# #?????????? | | ?????????????????????????# #?????????? | | ?????????????????????????# #?????????? | | ?????????????????????????+ #?????????? | | ?????????????????????????# #?????????? | | ?????????????????????????# #?????????? | | ?????????????????????????? ??????????? | | ???????????????????????????????????????? | | ???????????????????????????????????????? | | ???????????????????????????????????????? | | ???????????????????????????????????????? | | ???????????????????????????????????????? | | ???????????????????????????????????????? | | ???????????????????????????????????????? | | ???????????????????????????????????????? | | ???????????????????????????????????????? | +----------------------------------------------------+ Best States ------------- Heat Dissipation 34 Energy Generation 15 Energy Capacity 265 Matter Stores 300 Matter Capacity 300 Sight Range 20 Robot Scan Range 14 Terrain Scan Range 14 Terrain Scan Density 85 Core Shielding 20 Evasion (%) 72 Targeting Accuracy 5 Item Schematics ----------------- Targeting Computer | -8/Materials | Scanalyzed Robot Schematics ------------------ None Fabricated ------------ Nothing Alien Tech Used ----------------- None Achievements -------------- None Challenges ------------ None Game ------ Seed DamperDispersionTriangulator Manual? 0 Play Time 00:44:53 Cumulative 31.2 hours Start 2023.06.27 @ 17:29:04 End 2023.06.27 @ 18:14:23 Sessions 1 Manual Loads 0 Difficulty Rogue Special Mode None Game No. 35 Rogue 35 Adventurer 0 Explorer 0 Win Type - Total 0 Types 0/0/0/0/0/0/0/0/0 Lore% 8 Gallery% 27 Achievement% 19 Wizard Run 0 Options --------- ASCII 0 Keyboard 0 Movement Mouse Keybinds 0 Fullscreen 1 Font 24/Smallcaps Map View 76x50 Tactical HUD 1 Map Filters NONE Filters NONE Steam 1 RUN: 2960bfd0-2ac2-4013-bc74-938943e7bcf9